Workbook

Sheet بيانات الفواتير
D3: الفواتيرة
A4: الفترة | B4: رقم الزبون | C4: رقم الفاتورة | D4: مدين | E4: دائن
A5: 01/2019 | B5: 1001 | C5: 001 | D5: 8000 | K5: سلام عليكم
A6: 01/2019 | B6: 1002 | C6: 002 | D6: 4900 | K6: سادة الاعضاء كيف حالكم اتمنى ان تكونو في احسن حال ان شاء الله
A7: 01/2019 | B7: 1001 | C7: 003 | E7: 1500 | K7: اعتذر عن غيابي عن منتدى
A8: 01/2019 | B8: 1002 | C8: 004 | E8: 700 | K8: سادة الاعضاء لي طلب اتمنى ان اجد الجواب عندكم ان شاء الله
A9: 01/2019 | B9: 1002 | C9: 005 | E9: 400
A10: 01/2019 | B10: 1002 | C10: 006 | D10: 3000 | K10: انا عملت ثلاث اوراق
A11: 01/2019 | B11: 1003 | C11: 007 | D11: 9040 | K11: الاولي خاصة بالفاواتير خلال الاشهر
A12: 01/2019 | B12: 1004 | C12: 008 | D12: 2400 | K12: الثانية خاصة بالتسديدات خلال الاشهر
A13: 01/2019 | B13: 1003 | C13: 009 | D13: 800 | K13: الثالة خاصة بكشف الحساب لكل زبون
A14: 01/2019 | B14: 1003 | C14: 010 | E14: 840 | K14: والعمل كنا يلي
A15: 01/2019 | B15: 1004 | C15: 011 | D15: 4800 | E15: 80 | K15: الورقة الاولي
A16: 01/2019 | B16: 1003 | C16: 012 | D16: 1000 | K16: في المصلحة حيث اعمل استخرج بيانات الفواتير الشهر من احد البرامج المخصصة
A17: 01/2019 | B17: 1004 | C17: 013 | D17: 1400 | K17: واضعها في الاكسال كما هي موضحة امامكم وهي خاصة بشهر جانفي
A18: 01/2019 | B18: 1004 | C18: 014 | E18: 1800 | K18: بعد انتهاء شهر فيفري استخرج البيانات شهر فيفري واصعها تحت
A19: 01/2019 | B19: 1004 | C19: 015 | E19: 400 | K19: شهر جانفي مباشرة اي ابتداء من سطر رقم 27 وكذالك شهر مارس ياتي
A20: 01/2019 | B20: 1004 | C20: 016 | D20: 1500 | K20: مباشرة بعد شهر فيفري و هكدا لكل الاشهر
A21: 01/2019 | B21: 1004 | C21: 017 | E21: 900
A22: 01/2019 | B22: 1005 | C22: 018 | D22: 8000 | K22: الورقة الثانية
A23: 01/2019 | B23: 1005 | C23: 019 | E23: 2100 | K23: اضع فيها التسديدات خلال الشهر والمستخرجة من نفس البرنامج المخصص
A24: 01/2019 | B24: 1006 | C24: 020 | D24: 4580 | K24: واضعها بالاكسل بنفس الترتيب الصفحة الاولى
A25: 01/2019 | B25: 1006 | C25: 021 | E25: 400 | K25: وبها الفواتير المسددة فقط
A26: 01/2019 | B26: 1006 | C26: 022 | D26: 2100 | K26: مع العلم ان الارقام الفواتير لا تتكرر من شهر لاخر
K28: الورقة الثالثة
K29: وهنا الاهم حيث وضعت كشف الحساب لكل عميل وخصصت لكل منهم
K30: عدد من الاسطر مثلا الزبون رقم 1001 من تعاملي معه اعلم ان الفواتير التي ارسلها
K31: له خلال السنة لا تتجاوز 130 فاتورة لكن انا خصصت له من الاسطر من السطر رقم 5
K32: الى السطر رقم 184 اكثر من 130 سطر وهذا كاحتياط وهكذا كل زبون اخصص له اسطر
K33: لعلمي بحجم الفاوير التي يتحصل عليها خلال السنة مع زيادة عدد الاسطر كاحتياط
K35: الخطوة الاولى اني اخفيت الاسطر الفارغة مثلا الزبون 1001 له فاتورتين في شهر
K36: جانفي ولذلك بقية الاسطر التي يكون رصيدها يساوي 0 تكون مختفية
K37: وهذا الى السطر الخاص بالمجموع
K39: طلبي الاول هنا مايلي
K40: عند استخرج بيانات الفواتير شهر فيفري واضعها في ورقة الاولى اريد ماكرو يقوم بترحيل
K41: الفواتير الى الورقة الثالثة ولكل زبون فواتيره
K43: طلبي الثاني
K44: عند استخرج بيانات الفواتيرالمسددة في شهر فيفري واضعها في ورقة االثانية اريد ماكرو
K45: يقوم بترحيل التسديدات الفواتير الى الورقة االثالثة ولكل زبون تسديدات الخاصة بفواتيره
K46: طلبي الثالث
K47: اريد ماكرو خاص باصفحة الثالثة انه عند ادخال الفواتير من الصفحة الاولى اريد ان يفتح
K48: الاسطر التي بها فواتير اي عندما يكون السطر به رصيد موجب او سالب فانه يغتح
K49: وكذلك ان سددة الفاتورة واصبح رصيدها 0يساوي 0 فان السطر الخاص بها يغلق او يختفي
K50: لكن لن يمحى يغلق فقط
K52: اتمنى ان اكون شرحت طلبي جيدا واعتذر عن الاطالة
K53: اتمنى ان اجد عندكم الجواب ولو بالتدرج قد نجد الحل على الطلب الثالث هو الاول وبعدها
K54: نجد الحل الخاص بالطلب الاول والثاني المهم ان نجد الحل
K55: سادة الاعصاء تقبلو مني فائق التقدير ةالاحترام وجزاكم الله خيرا
K56: وشكر

Sheet بيانات التسديد
A2: بيانات التسديد
D3: التسديد
A4: رقم الزبون | B4: الفترة | C4: رقم الفاتورة | D4: مدين | E4: دائن
A5: 1001 | D5: 25
A6: 1002 | E6: 80

Sheet كشف الحساب
A2: رقم الزبون | B2: 1001
D3: الفوترة | G3: التسديد
A4: رقم الزبون | B4: الفترة | C4: رقم الفاتورة | D4: مدين | E4: دائن | G4: مدين | H4: دائن | J4: الرصيد
A5: 1001 | B5: 01/2019 | C5: 0001 | D5: 8000 | J5: =(D5-G5)+(-E5+H5) -> 8000
A6: 1001 | B6: 01/2019 | C6: 0003 | E6: 1500 | J6: =(D6-G6)+(-E6+H6) -> -1500
J7: 0
J8: 0
J9: 0
J10: 0
J11: 0
J12: 0
J13: 0
J14: 0
J15: 0
J16: 0
J17: 0
J18: 0
J19: 0
J20: 0
J21: 0
J22: 0
J23: 0
J24: 0
J25: 0
J26: 0
J27: 0
J28: 0
J29: 0
J30: 0
J31: 0
J32: 0
J33: 0
J34: 0
J35: 0
J36: 0
J37: 0
J38: 0
J39: 0
J40: 0
J41: 0
J42: 0
J43: 0
J44: 0
J45: 0
J46: 0
J47: 0
J48: 0
J49: 0
J50: 0
J51: 0
J52: 0
J53: 0
J54: 0
J55: 0
J56: 0
J57: 0
J58: 0
J59: 0
J60: 0
J61: 0
J62: 0
J63: 0
J64: 0
J65: 0
J66: 0
J67: 0
J68: 0
J69: 0
J70: =(D70-G70)+(-E70+H70) -> 0
J71: 0
J72: 0
J73: 0
J74: 0
J75: 0
J76: 0
J77: 0
J78: 0
J79: 0
J80: 0
J81: 0
J82: 0
J83: 0
J84: 0
J85: 0
J86: 0
J87: 0
J88: 0
J89: 0
J90: 0
J91: 0
J92: 0
J93: 0
J94: 0
J95: 0
J96: 0
J97: 0
J98: 0
J99: 0
J100: 0
J101: 0
J102: 0
J103: 0
J104: 0
J105: 0
J106: 0
J107: 0
J108: 0
J109: 0
J110: 0
J111: 0
J112: 0
J113: 0
J114: 0
J115: 0
J116: 0
J117: 0
J118: 0
J119: 0
J120: 0
J121: 0
J122: 0
J123: 0
J124: 0
J125: 0
J126: 0
J127: 0
J128: 0
J129: 0
J130: 0
J131: 0
J132: 0
J133: 0
J134: =(D134-G134)+(-E134+H134) -> 0
J135: 0
J136: 0
J137: 0
J138: 0
J139: 0
J140: 0
J141: 0
J142: 0
J143: 0
J144: 0
J145: 0
J146: 0
J147: 0
J148: 0
J149: 0
J150: 0
J151: 0
J152: 0
J153: 0
J154: 0
J155: 0
J156: 0
J157: 0
J158: 0
J159: 0
J160: 0
J161: 0
J162: 0
J163: 0
J164: 0
J165: 0
J166: 0
J167: 0
J168: 0
J169: 0
J170: 0
J171: 0
J172: 0
J173: 0
J174: 0
J175: 0
J176: 0
J177: 0
J178: 0
J179: 0
J180: 0
J181: 0
J182: 0
J183: 0
J184: 0
D186: =SUM(D5:D185) -> 8000 | E186: =SUM(E5:E185) -> 1500 | G186: =SUM(G5:G185) -> 0 | H186: 0 | J186: =SUM(J5:J185) -> 6500
A191: رقم الزبون | B191: 1002
D192: الفوترة | G192: التسديد
A193: رقم الزبون | B193: الفترة | C193: رقم الفاتورة | D193: مدين | E193: دائن | G193: مدين | H193: دائن | J193: الرصيد
A194: 1002 | B194: 01/2019 | C194: 002 | D194: 4900 | J194: =(D194-G194)+(-E194+H194) -> 4900
A195: 1002 | B195: 01/2019 | C195: 004 | E195: 700 | J195: =(D195-G195)+(-E195+H195) -> -700
A196: 1002 | B196: 01/2019 | C196: 005 | E196: 400 | J196: -400
A197: 1002 | B197: 01/2019 | C197: 006 | D197: 3000 | J197: 3000
J198: 0
J199: 0
J200: 0
J201: 0
J202: 0
J203: 0
J204: 0
J205: 0
J206: 0
... 904 more rows

Sheet Sheet1
C2: رقم الزبون | D2: رقم الزبون | E2: رقم الزبون | F2: رقم الزبون | G2: رقم الزبون | H2: رقم الزبون
C3: 1001 | D3: 1002 | E3: 1003 | F3: 1004 | G3: 1005 | H3: 1006
E9: 1001 | N9: 1002 | W9: 1003 | AF9: 1004 | AO9: 1005 | AX9: 1006
C11: =SUM(C14:C34)-SUM(D14:D34) -> 0 | G11: =SUM(G14:G34)-SUM(H14:H34) -> 0 | L11: =SUM(L14:L34)-SUM(M14:M34) -> 0 | P11: =SUM(P14:P34)-SUM(Q14:Q34) -> 0 | U11: =SUM(U14:U34)-SUM(V14:V34) -> 0 | Y11: =SUM(Y14:Y34)-SUM(Z14:Z34) -> 0 | AD11: =SUM(AD14:AD34)-SUM(AE14:AE34) -> 0 | AH11: =SUM(AH14:AH34)-SUM(AI14:AI34) -> 0 | AM11: =SUM(AM14:AM34)-SUM(AN14:AN34) -> 0 | AQ11: =SUM(AQ14:AQ34)-SUM(AR14:AR34) -> 0 | AV11: =SUM(AV14:AV34)-SUM(AW14:AW34) -> 0 | AZ11: =SUM(AZ14:AZ34)-SUM(BA14:BA34) -> 0
A12: الفواتير | E12: التسديدات | J12: الفواتير | N12: التسديدات | S12: الفواتير | W12: التسديدات | AB12: الفواتير | AF12: التسديدات | AK12: الفواتير | AO12: التسديدات | AT12: الفواتير | AX12: التسديدات
A13: الفترة | B13: رقم الفاتورة | C13: مدين | D13: دائن | E13: الفترة | F13: رقم الفاتورة | G13: مدين | H13: دائن | J13: الفترة | K13: رقم الفاتورة | L13: مدين | M13: دائن | N13: الفترة | O13: رقم الفاتورة | P13: مدين | Q13: دائن | S13: الفترة | T13: رقم الفاتورة | U13: مدين | V13: دائن | W13: الفترة | X13: رقم الفاتورة | Y13: مدين | Z13: دائن | AB13: الفترة | AC13: رقم الفاتورة | AD13: مدين | AE13: دائن | AF13: الفترة | AG13: رقم الفاتورة | AH13: مدين | AI13: دائن | AK13: الفترة | AL13: رقم الفاتورة | AM13: مدين | AN13: دائن | AO13: الفترة | AP13: رقم الفاتورة | AQ13: مدين | AR13: دائن | AT13: الفترة | AU13: رقم الفاتورة | AV13: مدين | AW13: دائن | AX13: الفترة | AY13: رقم الفاتورة | AZ13: مدين | BA13: دائن
